bitfinex/quotes_SOLUSD_20250805
["timestamp","ask_amount","ask_price","bid_price","bid_amount"]
[1754407654179,0.03,164.15,164.12,18.87610399]
[1754407654657,0.03,164.15,164.14,18.87610399]
[1754407655658,0.03,164.15,164.14,24.96846417]
[1754407656365,0.03,164.15,164.14,40.55684131]
[1754407657059,0.03,164.15,164.14,40.07467974]
[1754407657374,0.03,164.15,164.13,15.10621557]
[1754407657529,0.03,164.15,164.14,18.87610399]
[1754407657945,0.03,164.15,164.13,15.10621557]
[1754407658171,0.03,164.15,164.14,18.87610399]
[1754407658956,0.71,164.15,164.11,18.87610399]
[1754407659183,0.68,164.14,164.11,15.10621557]
[1754407659482,0.68,164.13,164.1,15.10621557]
[1754407659856,0.03,164.15,164.11,18.87610399]
[1754407660190,0.03,164.15,164.14,33.98231956]
[1754407660489,0.03,164.17,164.15,15.24837714]
[1754407660664,0.68,164.25,164.18,0.14216157]
[1754407660981,0.68,164.25,164.22,18.87610399]
[1754407661593,0.68,164.24,164.21,18.87610399]
[1754407661779,0.68,164.23,164.2,18.87610399]
[1754407661991,0.68,164.23,164.17,45.3]
[1754407661992,18.87610399,164.22,164.17,18.87610399]
[1754407662156,0.68,164.21,164.17,18.87610399]
[1754407662495,0.68,164.2,164.15,60.38621557]
[1754407662676,0.68,164.19,164.16,18.87610399]
[1754407662876,19.55610399,164.18,164.13,24.96877885]
[1754407663189,0.68,164.17,164.13,18.87610399]
[1754407663684,0.68,164.17,164.13,24.96876335]
[1754407664370,18.87610399,164.18,164.13,24.96876335]
[1754407664576,0.68,164.2,164.14,18.87610399]
[1754407664768,0.68,164.18,164.14,18.87610399]
[1754407664973,19.55610399,164.18,164.14,6.09221437]
[1754407665194,0.68,164.17,164.13,24.96876036]
[1754407665357,18.87610399,164.16,164.12,21.19923667]
[1754407665553,18.87610399,164.14,164.11,45.26]
[1754407665753,0.68,164.13,164.1,15.10621557]
[1754407665953,19.55610399,164.13,164.1,15.10621557]
[1754407666381,19.55610399,164.13,164.1,21.19995007]
[1754407666594,18.87610399,164.14,164.1,21.19995007]
[1754407666884,18.87610399,164.15,164.1,21.19995007]
[1754407667086,18.87610399,164.15,164.1,40.07605406]
[1754407667385,18.87610399,164.16,164.11,18.87610399]
[1754407667558,45.22,164.17,164.11,18.87610399]
[1754407667754,45.22,164.17,164.14,18.87610399]
[1754407668190,0.68,164.23,164.17,15.10621557]
[1754407668384,45.22,164.25,164.19,18.87610399]
[1754407668579,45.55610399,164.24,164.19,18.87610399]
[1754407668780,44.87610399,164.24,164.18,18.87610399]
[1754407669102,44.87610399,164.24,164.17,15.10621557]
[1754407669103,18.87610399,164.22,164.17,21.19737462]
[1754407669280,18.87610399,164.22,164.17,40.07347861]
[1754407669587,18.87610399,164.23,164.18,18.87610399]
[1754407669786,45.9,164.25,164.21,18.87610399]
[1754407670012,45.9,164.25,164.22,18.87610399]
[1754407670806,45.22,164.25,164.22,18.87610399]
[1754407671101,45.22,164.25,164.24,18.87610399]
[1754407671409,77.92720959,164.28,164.24,18.87610399]
[1754407671578,45.16,164.28,164.25,18.87610399]
[1754407671906,0.2,164.3,164.26,18.87610399]
[1754407672062,0.88,164.3,164.23,15.44621557]
[1754407672263,0.68,164.29,164.22,15.24837714]
[1754407672473,0.68,164.29,164.25,18.87610399]
[1754407672786,19.55610399,164.29,164.22,15.10621557]
[1754407672994,6.76716824,164.28,164.23,18.87610399]
[1754407673178,19.55610399,164.27,164.22,18.87610399]
[1754407673369,0.68,164.26,164.23,18.87610399]
[1754407674098,0.68,164.25,164.21,33.98231956]
[1754407674509,45.14,164.27,164.22,18.87610399]
[1754407674670,64.01610399,164.27,164.22,18.87610399]
[1754407675003,0.68,164.26,164.21,21.19588018]
[1754407675182,18.87610399,164.26,164.21,40.07198417]
[1754407675384,0.68,164.25,164.21,40.07198417]
[1754407675588,18.87610399,164.26,164.21,40.07198417]
[1754407675784,19.55610399,164.26,164.21,40.07198417]
[1754407676804,0.68,164.25,164.21,40.07198417]
[1754407677577,64.01610399,164.27,164.21,21.19588018]
[1754407677767,64.01610399,164.27,164.18,15.22676032]
[1754407677768,18.87610399,164.23,164.18,18.87610399]
[1754407677972,0.68,164.22,164.18,18.87610399]
[1754407678193,19.55610399,164.25,164.2,18.87610399]
[1754407678381,0.2,164.3,164.24,18.87610399]
[1754407678597,18.87610399,164.29,164.23,18.87610399]
[1754407678810,18.87610399,164.27,164.22,18.87610399]
[1754407679210,0.68,164.26,164.22,18.87610399]
[1754407679388,26.0,164.27,164.23,18.87610399]
[1754407679582,26.68,164.27,164.23,18.87610399]
[1754407679781,26.68,164.27,164.2,15.10621557]
[1754407679982,32.76756613,164.27,164.23,18.87610399]
[1754407680313,32.76756613,164.27,164.2,15.10621557]
[1754407680314,18.87610399,164.25,164.2,40.07236112]
[1754407680520,0.68,164.24,164.2,40.07236112]
[1754407680690,32.76756613,164.27,164.21,18.87610399]
[1754407680896,18.87610399,164.24,164.19,18.87610399]
[1754407681195,19.55610399,164.23,164.18,24.96690199]
[1754407681410,0.68,164.23,164.19,18.87610399]
[1754407681718,0.68,164.23,164.19,24.96654409]
[1754407681891,25.64467944,164.25,164.19,24.96654409]
[1754407682380,25.64467944,164.25,164.2,18.87610399]
[1754407682581,18.87610399,164.24,164.19,24.96654409]
[1754407682814,0.68,164.25,164.21,18.87610399]
[1754407683003,63.85610399,164.26,164.21,18.87610399]
[1754407683326,64.53610399,164.26,164.21,18.87610399]
[1754407683499,18.87610399,164.25,164.2,33.98231956]
[1754407683691,19.53610399,164.25,164.2,40.07215249]
[1754407684199,19.53610399,164.25,164.2,21.1960485]
[1754407684412,44.98,164.26,164.22,18.87610399]
[1754407685226,19.53610399,164.25,164.2,21.1960485]
[1754407685387,19.53610399,164.25,164.2,40.07215249]
[1754407685587,0.66,164.25,164.21,18.87610399]
[1754407685798,44.98,164.26,164.21,19.21610399]
[1754407685997,44.98,164.26,164.22,18.87610399]
[1754407686500,0.66,164.28,164.25,18.87610399]
[1754407686705,0.2,164.3,164.27,12.46061761]
[1754407687002,0.2,164.3,164.24,15.10621557]
[1754407687003,0.2,164.3,164.26,0.34]
[1754407687203,0.2,164.3,164.28,12.46061761]
[1754407687405,0.86,164.3,164.27,12.46061761]
[1754407688502,0.66,164.29,164.25,12.46061761]
[1754407688702,0.66,164.28,164.25,18.80633647]
[1754407688928,19.46633647,164.27,164.22,24.89558884]
[1754407689215,0.66,164.26,164.22,24.89558884]
[1754407689583,18.80633647,164.23,164.19,15.10621557]
[1754407689787,19.46633647,164.22,164.19,15.10621557]
[1754407690018,19.46633647,164.22,164.18,6.09052404]
[1754407690323,18.80633647,164.23,164.18,25.23686051]
[1754407690520,69.73498967,164.24,164.18,25.23686051]
[1754407690690,69.73498967,164.24,164.18,24.89686051]
[1754407690691,19.46633647,164.23,164.18,24.89686051]
[1754407691300,19.46633647,164.23,164.18,6.09052404]
[1754407691524,0.66,164.22,164.18,24.89686051]
[1754407691725,18.80633647,164.21,164.17,15.10621557]
[1754407692027,18.80633647,164.18,164.14,15.10621557]
[1754407692323,0.66,164.18,164.14,15.10621557]
[1754407692527,18.80633647,164.19,164.14,15.10621557]
[1754407692825,19.46633647,164.18,164.14,15.10621557]
[1754407693211,19.46633647,164.17,164.12,33.97255204]
[1754407693417,18.80633647,164.18,164.13,18.80633647]
[1754407693597,19.46633647,164.18,164.14,6.09236018]
[1754407694592,25.55727052,164.18,164.13,24.89896282]
[1754407695087,0.66,164.17,164.12,40.0655957]
[1754407695317,0.66,164.16,164.12,40.0655957]
[1754407695512,19.46633647,164.16,164.12,15.16621557]
[1754407695717,19.46633647,164.16,164.12,21.2592532]
[1754407696097,18.80633647,164.14,164.12,0.06]
[1754407696610,19.46633647,164.14,164.12,0.06]
[1754407696812,0.66,164.14,164.12,0.06]
[1754407696996,19.46633647,164.14,164.12,0.06]
[1754407697197,45.5,164.16,164.12,0.06]
[1754407697524,45.5,164.16,164.12,18.86633647]
[1754407697726,71.48,164.19,164.15,18.80633647]
[1754407698022,45.48,164.19,164.16,18.80633647]
[1754407698226,44.82,164.19,164.16,18.80633647]
[1754407698409,44.8,164.23,164.18,18.80633647]
[1754407698611,4.08065289,164.22,164.19,18.80633647]
[1754407698818,4.08065289,164.22,164.2,18.80633647]
[1754407699020,45.46,164.23,164.2,18.80633647]
[1754407699223,45.46,164.23,164.18,18.80633647]
[1754407699224,0.66,164.22,164.18,18.80633647]
[1754407699433,69.69557329,164.23,164.18,18.80633647]
[1754407699604,0.66,164.21,164.17,18.80633647]
[1754407699924,63.60633647,164.23,164.18,18.80633647]
[1754407700111,0.66,164.22,164.18,18.80633647]
[1754407700310,44.8,164.23,164.19,18.80633647]
[1754407700516,44.8,164.23,164.2,18.80633647]
[1754407700841,0.69,164.27,164.22,18.80633647]
[1754407701008,45.46,164.26,164.23,18.80633647]
[1754407701210,4.08148432,164.25,164.23,18.80633647]
[1754407701434,4.08148432,164.25,164.23,24.89516386]
[1754407702222,4.08148432,164.25,164.23,18.80633647]
[1754407702414,4.08148432,164.25,164.23,24.89528846]
[1754407702929,4.08148432,164.25,164.23,6.08895199]
[1754407703126,4.08148432,164.25,164.23,24.89528846]
[1754407703543,45.46,164.26,164.23,24.89528846]
[1754407703926,0.03,164.27,164.25,18.80633647]
[1754407704332,0.03,164.27,164.26,18.80633647]
[1754407706209,0.03,164.27,164.26,24.89424588]
[1754407707042,0.03,164.27,164.26,40.34046145]
[1754407707452,0.03,164.27,164.26,40.00046145]
[1754407707655,0.03,164.27,164.26,18.80633647]
[1754407708537,0.03,164.27,164.26,24.89424588]
[1754407708734,0.03,164.27,164.26,18.54863717]
[1754407709158,0.03,164.27,164.26,33.65485274]
[1754407711270,0.03,164.27,164.23,6.08902149]
[1754407711571,0.03,164.27,164.25,12.46072776]
[1754407712584,0.69,164.27,164.25,12.46072776]
[1754407712733,0.69,164.27,164.24,15.10621557]
[1754407712934,0.69,164.27,164.24,27.56694333]
[1754407713162,0.66,164.26,164.24,27.56694333]
[1754407713366,0.66,164.25,164.23,27.56694333]
[1754407713533,0.66,164.25,164.22,106.05003076]
[1754407713736,0.66,164.25,164.22,18.55003076]
[1754407713737,0.72,164.25,164.22,18.55003076]
[1754407714129,0.72,164.24,164.21,27.56694333]
[1754407714344,6.11757084,164.27,164.2,12.46072776]
[1754407714345,0.72,164.23,164.2,12.46072776]
[1754407714541,0.72,164.22,164.19,63.33118194]
[1754407715084,13.18072776,164.21,164.15,18.287665]
[1754407715377,13.18072776,164.2,164.15,18.287665]
[1754407715572,0.72,164.2,164.15,30.74839276]
[1754407715779,0.72,164.2,164.15,12.46072776]
[1754407715978,50.84905977,164.23,164.19,12.46072776]
[1754407715979,0.72,164.23,164.19,12.46072776]
[1754407716284,13.18072776,164.22,164.16,0.48216157]
[1754407716437,13.18072776,164.22,164.17,12.46072776]
[1754407716833,70.79,164.24,164.18,18.55160362]
[1754407717141,4.08364418,164.23,164.19,12.46072776]
[1754407717336,39.21072776,164.24,164.2,12.46072776]
[1754407717337,26.75,164.24,164.2,12.46072776]
[1754407717543,0.72,164.23,164.19,15.10621557]
[1754407717747,0.72,164.22,164.18,18.55160362]
[1754407717951,0.72,164.21,164.18,18.55160362]
[1754407718157,0.72,164.22,164.19,12.46072776]
[1754407718342,0.75,164.24,164.18,21.31806552]
[1754407718545,0.03,164.24,164.21,12.46072776]
[1754407718951,0.03,164.24,164.21,18.55018308]
[1754407719169,0.75,164.24,164.21,6.08945532]
[1754407719381,0.03,164.24,164.21,6.08945532]
[1754407719733,12.46072776,164.22,164.14,0.34]
[1754407720050,0.72,164.21,164.16,27.56694333]
[1754407720260,12.46072776,164.22,164.17,12.46072776]
[1754407720442,13.18072776,164.22,164.17,12.46072776]
[1754407720644,0.72,164.21,164.16,12.46072776]
[1754407720951,0.72,164.2,164.17,6.09124687]
[1754407721146,0.72,164.2,164.17,93.59124687]
[1754407721556,13.18072776,164.2,164.17,87.5]
[1754407721767,0.72,164.19,164.17,87.5]
[1754407723378,0.72,164.19,164.17,93.59114163]
[1754407723673,12.46072776,164.22,164.17,93.59114163]
[1754407723858,13.18072776,164.21,164.17,93.59114163]
[1754407724038,0.72,164.2,164.17,93.59114163]
[1754407724952,12.46072776,164.21,164.17,93.59114163]
[1754407725258,13.18072776,164.21,164.17,93.59114163]
[1754407725970,6.08903501,164.23,164.17,87.5]
[1754407725971,12.46072776,164.18,164.17,87.5]
[1754407726163,13.18072776,164.18,164.17,87.5]
[1754407728548,12.46072776,164.18,164.17,87.5]
[1754407728748,26.0,164.22,164.17,18.89197463]
[1754407728949,0.72,164.23,164.17,18.89197463]
[1754407728950,0.72,164.23,164.19,12.46072776]
[1754407729149,0.72,164.23,164.17,12.80072776]
[1754407729150,4.79990808,164.23,164.17,12.80072776]
[1754407729350,0.72,164.23,164.17,12.46072776]
[1754407729881,12.46072776,164.21,164.16,72.34694333]
[1754407730064,13.18072776,164.21,164.16,72.68694333]
[1754407730266,0.72,164.21,164.16,72.68694333]
[1754407730581,12.46072776,164.23,164.18,12.46072776]
[1754407730880,0.03,164.24,164.19,27.56694333]
[1754407731052,0.03,164.24,164.2,0.34]
[1754407731251,0.03,164.24,164.15,87.5]
[1754407731252,12.46072776,164.21,164.15,87.84]
[1754407731451,12.46072776,164.19,164.16,6.09161793]
[1754407731766,44.78,164.23,164.14,44.78]
[1754407731767,13.18072776,164.18,164.14,44.78]
[1754407731970,13.18072776,164.19,164.14,57.24072776]
[1754407732775,13.18072776,164.19,164.14,63.33298772]
[1754407733986,13.18072776,164.19,164.14,63.67298772]
[1754407734481,13.18072776,164.18,164.14,50.87225996]
[1754407734675,13.18072776,164.18,164.14,6.09225996]
[1754407735560,32.08982021,164.21,164.14,6.09225996]
[1754407735776,30.0766844,164.2,164.14,18.89298772]
[1754407735976,57.24072776,164.23,164.17,12.46072776]
[1754407736165,16.53778568,164.22,164.17,99.96072776]
[1754407736481,13.18072776,164.22,164.17,87.5]
[1754407736710,12.46072776,164.2,164.17,87.5]
[1754407736981,12.46072776,164.18,164.17,87.5]
[1754407737172,13.18072776,164.18,164.15,102.60621557]
[1754407737888,13.18072776,164.18,164.15,108.69789617]
[1754407738192,12.46072776,164.18,164.15,108.69789617]
[1754407738381,12.46072776,164.19,164.15,108.69789617]
[1754407738578,13.18072776,164.19,164.15,108.69789617]
[1754407739269,13.18072776,164.18,164.14,87.5]
[1754407739574,12.46072776,164.15,164.14,87.5]
[1754407740180,13.18072776,164.15,164.12,0.06]
[1754407740374,13.18072776,164.14,164.12,0.06]
[1754407741172,0.72,164.17,164.12,6.15305127]
[1754407741384,12.46072776,164.15,164.12,0.06]
[1754407741558,12.46072776,164.13,164.12,0.06]
[1754407741765,13.18072776,164.13,164.12,0.06]
[1754407745163,12.46072776,164.14,164.12,0.06]
[1754407745492,26.0,164.15,164.12,0.06]
[1754407745695,39.14072776,164.15,164.12,0.06]
[1754407745865,12.46072776,164.14,164.12,0.06]
[1754407746065,13.14072776,164.14,164.12,0.06]
[1754407746379,38.46072776,164.15,164.12,0.06]
[1754407746714,13.14072776,164.14,164.12,0.06]
[1754407746990,13.14072776,164.15,164.12,0.06]
[1754407748305,26.0,164.17,164.13,12.46072776]
[1754407748598,0.68,164.16,164.13,12.46072776]
[1754407748803,0.68,164.16,164.12,12.52072776]
[1754407749007,12.46072776,164.15,164.12,0.06]
[1754407749170,57.22072776,164.18,164.13,12.46072776]
[1754407749371,57.22072776,164.18,164.12,0.4]
[1754407749372,12.46072776,164.14,164.12,0.06]
[1754407749791,12.46072776,164.15,164.12,0.06]
[1754407750009,44.76,164.18,164.12,12.52072776]
[1754407750309,57.90072776,164.18,164.13,6.09273137]
[1754407750620,0.68,164.21,164.17,12.46072776]
[1754407750896,0.68,164.21,164.2,12.46072776]
[1754407750897,4.07179557,164.21,164.2,12.46072776]
[1754407751103,71.47,164.24,164.2,12.46072776]
[1754407751398,71.47,164.24,164.17,15.10621557]
[1754407751399,4.75341625,164.23,164.19,12.46072776]
[1754407751591,0.68,164.22,164.18,12.46072776]
[1754407752104,83.93072776,164.24,164.19,12.46072776]
[1754407752400,83.93072776,164.24,164.19,18.55109334]
[1754407752607,0.68,164.23,164.19,18.55109334]
[1754407753169,4.75633011,164.23,164.2,12.46072776]
[1754407753410,83.25072776,164.24,164.19,18.55109334]
[1754407753704,0.68,164.22,164.19,18.55109334]
[1754407753902,83.25072776,164.24,164.21,12.46072776]
[1754407753903,44.79,164.24,164.21,12.46072776]
[1754407754094,0.03,164.24,164.2,15.10621557]
[1754407754281,0.68,164.23,164.2,12.46072776]
[1754407754801,0.68,164.23,164.19,12.46072776]
[1754407755007,0.03,164.24,164.2,12.46072776]
[1754407755177,0.03,164.24,164.21,12.46072776]
[1754407755574,0.71,164.24,164.21,12.46072776]
[1754407755773,0.68,164.23,164.18,6.09087586]
[1754407755988,0.68,164.22,164.18,18.55160362]
[1754407756203,0.68,164.21,164.17,18.55187031]
[1754407756385,0.68,164.2,164.17,6.09114255]
[1754407756597,0.68,164.2,164.17,18.55187031]
[1754407756783,57.88072776,164.22,164.17,18.55187031]
[1754407757104,0.68,164.21,164.17,18.55187031]
[1754407757481,0.68,164.2,164.17,18.55187031]
[1754407758312,4.08190156,164.21,164.17,12.46072776]
[1754407758480,13.14072776,164.19,164.14,106.05298147]
[1754407758690,0.68,164.18,164.14,106.05298147]
[1754407758988,13.14072776,164.2,164.15,12.46072776]
[1754407759181,12.46072776,164.2,164.15,12.46072776]
[1754407759385,0.68,164.19,164.15,12.46072776]
[1754407759785,0.68,164.18,164.15,18.55257902]
[1754407759980,13.14072776,164.18,164.14,93.59228804]
[1754407760178,0.68,164.17,164.13,6.09265582]
[1754407760408,12.46072776,164.15,164.12,0.06]
[1754407760706,12.46072776,164.14,164.12,0.06]
[1754407760907,13.14072776,164.14,164.12,0.06]
[1754407761315,13.14072776,164.13,164.12,0.06]
[1754407761615,17.50933297,164.13,164.12,0.06]
[1754407761781,22.92206434,164.13,164.12,0.06]
[1754407761980,17.22500983,164.13,164.12,0.06]
[1754407762882,4.08428207,164.13,164.12,0.06]
[1754407763082,4.08520498,164.15,164.12,12.52072776]
[1754407763285,4.08520498,164.16,164.12,12.52072776]
[1754407763704,4.76520498,164.16,164.12,12.52072776]
[1754407763894,12.46072776,164.14,164.12,0.06]
[1754407764101,0.68,164.15,164.12,0.06]
[1754407764404,12.46072776,164.14,164.12,0.06]
[1754407764589,13.14072776,164.14,164.12,0.06]
[1754407764924,12.46072776,164.16,164.12,0.06]
[1754407765079,4.08356276,164.15,164.12,0.06]
[1754407765286,4.76356276,164.15,164.12,0.06]
[1754407765796,0.68,164.14,164.12,0.06]
[1754407767128,12.46072776,164.18,164.13,12.46072776]
[1754407767289,4.08225272,164.17,164.13,12.46072776]
[1754407767488,4.76225272,164.17,164.13,12.46072776]
[1754407767686,12.46072776,164.14,164.12,87.56]
[1754407767907,13.14072776,164.13,164.12,0.06]
[1754407768120,17.50705005,164.13,164.1,0.06]
[1754407768293,12.46072776,164.11,164.1,0.06]
[1754407768489,16.54272691,164.11,164.1,0.06]
[1754407768695,17.22272691,164.11,164.1,0.06]
[1754407769206,13.14072776,164.11,164.1,0.06]
[1754407769518,17.22067194,164.11,164.1,0.06]
[1754407769811,23.31414582,164.11,164.1,0.06]
[1754407770015,23.59846896,164.11,164.1,0.06]
[1754407770317,73.35111165,164.11,164.1,0.06]
[1754407771628,61.94067194,164.11,164.1,0.06]
[1754407772925,0.68,164.14,164.1,0.06]
[1754407773219,44.72,164.13,164.1,0.06]
[1754407773408,57.18072776,164.13,164.1,0.06]
[1754407773614,45.42,164.13,164.1,0.06]
[1754407773826,57.88072776,164.13,164.1,0.06]
[1754407774016,0.7,164.12,164.1,0.06]
[1754407774527,57.88072776,164.13,164.1,0.06]
[1754407775407,44.72,164.13,164.11,12.46072776]
[1754407775591,26.7,164.16,164.11,12.46072776]
[1754407775798,44.72,164.15,164.12,12.46072776]
[1754407775991,0.7,164.18,164.14,12.46072776]
[1754407776229,0.7,164.18,164.13,12.46072776]
[1754407776230,44.72,164.17,164.13,12.46072776]
[1754407776401,45.42,164.17,164.13,12.46072776]
[1754407776599,57.18072776,164.17,164.12,12.46072776]
[1754407776823,0.7,164.16,164.12,12.46072776]
[1754407777209,0.7,164.16,164.12,18.55370869]
[1754407778208,44.72,164.17,164.12,6.49298093]
[1754407778440,0.7,164.16,164.12,18.55370869]
[1754407780237,57.18072776,164.17,164.12,18.55370869]
[1754407780408,44.72,164.17,164.13,12.86072776]
[1754407780598,0.03,164.16,164.13,12.46072776]
[1754407781015,0.03,164.16,164.14,6.09236018]
[1754407781333,0.03,164.16,164.13,18.55332356]
[1754407782510,0.03,164.16,164.14,12.46072776]
[1754407782905,0.03,164.16,164.14,12.86072776]
[1754407783325,0.03,164.16,164.14,18.55306851]
[1754407786819,0.03,164.16,164.12,87.5]
[1754407787020,13.16072776,164.15,164.12,87.5]
[1754407787225,0.7,164.14,164.12,87.5]
[1754407787418,13.16072776,164.13,164.1,87.56]
[1754407787749,12.46072776,164.11,164.1,87.56]
[1754407788047,57.86072776,164.11,164.1,0.06]
[1754407789641,26.28432314,164.14,164.1,0.06]
[1754407789840,0.03,164.16,164.12,12.46072776]
[1754407790041,48.81439145,164.16,164.12,12.46072776]
[1754407790349,44.73,164.16,164.14,12.46072776]
[1754407790645,0.03,164.16,164.14,12.46072776]
[1754407790823,0.03,164.16,164.13,12.46072776]
[1754407791023,0.73,164.16,164.13,12.46072776]
[1754407791752,0.03,164.16,164.13,12.46072776]
[1754407792044,0.03,164.16,164.14,18.55308794]
[1754407792541,0.03,164.16,164.15,27.96694333]
[1754407793936,0.03,164.16,164.15,34.05893236]
[1754407795440,0.03,164.16,164.15,21.5982046]
[1754407795630,0.03,164.16,164.15,34.20109393]
[1754407795830,0.03,164.16,164.15,121.70109393]
[1754407796645,0.03,164.18,164.16,15.24837714]
[1754407796833,0.03,164.18,164.17,12.46072776]
[1754407797144,0.03,164.18,164.17,12.86072776]
[1754407797450,0.03,164.18,164.17,15.10621557]
[1754407798221,0.73,164.18,164.17,15.10621557]
[1754407798418,0.03,164.18,164.17,21.19746244]
[1754407798631,0.03,164.18,164.17,33.6581902]
[1754407799028,0.03,164.18,164.17,21.19746244]
[1754407799650,0.03,164.18,164.17,33.6581902]
[1754407800026,0.03,164.18,164.17,34.0581902]
[1754407800220,0.03,164.18,164.17,166.36035177]
[1754407800646,1e-08,164.18,164.17,166.36035177]
[1754407800847,0.03,164.24,164.21,26.0]
[1754407801052,0.03,164.24,164.23,12.46072776]
[1754407801451,0.03,164.24,164.23,27.56694333]
[1754407801649,0.73,164.24,164.19,87.5]
[1754407801956,0.03,164.24,164.22,12.46072776]
[1754407802456,0.03,164.24,164.22,18.54983432]
[1754407802859,0.03,164.24,164.23,12.46072776]
[1754407803062,0.03,164.24,164.23,27.56694333]
[1754407803231,1e-08,164.24,164.23,72.7691049]
[1754407803636,1e-08,164.24,164.23,75.2065689]
[1754407803961,1e-08,164.25,164.24,15.24837714]
[1754407804139,1e-08,164.25,164.24,28.1091049]
[1754407804472,1e-08,164.25,164.24,33.65559408]
[1754407804766,1e-08,164.25,164.24,21.19486632]
[1754407805265,1e-08,164.25,164.24,15.10621557]
[1754407805432,1e-08,164.25,164.24,33.65559408]
[1754407806382,0.69000001,164.25,164.24,15.10621557]
[1754407806662,1e-08,164.25,164.24,33.65559408]
[1754407806874,1e-08,164.25,164.24,79.12207879]
[1754407807538,1e-08,164.25,164.24,167.23094386]
[1754407807853,1e-08,164.3,164.27,15.53270028]
[1754407808081,1e-08,164.33,164.31,0.28432314]
[1754407808282,1e-08,164.33,164.3,15.53270028]
[1754407808283,1e-08,164.33,164.32,79.44336]
[1754407809393,1e-08,164.33,164.32,82.55405166]
[1754407809593,1e-08,164.33,164.32,82.15405166]
[1754407809796,1e-08,164.33,164.32,81.54548302]
[1754407810088,1e-08,164.33,164.32,27.56694333]
[1754407810268,1e-08,164.33,164.32,33.65262979]
[1754407810471,1e-08,164.33,164.32,33.79479136]
[1754407810674,1e-08,164.33,164.32,34.19479136]
[1754407810848,1e-08,164.33,164.32,33.79479136]
[1754407811453,1e-08,164.33,164.32,36.89201526]
[1754407811658,1e-08,164.33,164.32,37.29201526]
[1754407812066,1e-08,164.33,164.32,33.65262979]
[1754407812665,0.69000001,164.33,164.32,15.10621557]
[1754407812863,13.15072777,164.33,164.29,57.08072776]
[1754407813081,13.15072777,164.33,164.23,15.22247268]
[1754407813082,12.46072776,164.31,164.23,15.22247268]
[1754407813261,12.46072776,164.29,164.23,15.22247268]
[1754407813478,0.69,164.3,164.27,12.46072776]
[1754407813789,0.69,164.32,164.29,12.46072776]
[1754407813956,1e-08,164.33,164.31,12.46072776]
[1754407814162,1e-08,164.33,164.32,27.56694333]
[1754407814368,1e-08,164.33,164.31,15.10621557]
[1754407814585,13.15072776,164.32,164.28,62.87541]
[1754407814780,0.69,164.31,164.28,57.06072776]
[1754407814986,0.69,164.31,164.29,27.56694333]
[1754407815779,0.69,164.3,164.29,21.19272003]
[1754407816969,0.69,164.3,164.27,6.087513]
[1754407817171,13.15072776,164.3,164.27,15.10621557]
[1754407817512,0.69,164.29,164.27,15.10621557]
[1754407818082,0.69,164.32,164.28,12.46072776]
[1754407818286,0.69,164.31,164.28,12.46072776]
[1754407818486,0.69,164.3,164.26,18.54853079]
[1754407818674,12.46072776,164.28,164.25,15.10621557]
[1754407818972,13.15072776,164.27,164.24,15.10621557]
[1754407819299,0.69,164.26,164.24,15.10621557]
[1754407819609,12.46072776,164.28,164.24,15.10621557]
[1754407819610,13.15072776,164.28,164.24,15.10621557]
[1754407819898,0.69,164.27,164.24,15.10621557]
[1754407820299,0.69,164.26,164.24,15.10621557]
[1754407821117,0.69,164.25,164.24,6.08865075]
[1754407821266,13.15072776,164.25,164.21,44.6]
[1754407821467,0.69,164.24,164.21,44.6]
[1754407821672,13.15072776,164.24,164.2,15.10621557]
[1754407821877,0.69,164.23,164.2,15.10621557]
[1754407822196,0.69,164.22,164.2,15.10621557]
[1754407822400,0.69,164.26,164.22,15.10621557]
[1754407822579,39.15072776,164.28,164.23,12.46072776]
[1754407822908,0.69,164.27,164.24,33.65559408]
[1754407823112,0.69,164.27,164.25,12.46072776]
[1754407823280,0.69,164.29,164.25,12.46072776]
[1754407823481,0.69,164.29,164.24,21.19486632]